bitfinex-derivatives/quotes_BNBF0:USTF0_20250509
["timestamp","ask_amount","ask_price","bid_price","bid_amount"]
[1746796935997,0.26055342,639.32,639.03,0.01646467]
[1746796936198,0.26055342,639.32,638.91,0.742]
[1746796936492,0.31283727,639.31,638.91,0.742]
[1746796936798,0.26055342,639.3,638.91,0.742]
[1746796937496,0.31284706,639.29,638.91,0.742]
[1746796937997,0.26055342,639.28,638.91,0.742]
[1746796938198,0.57340537,639.28,638.91,0.742]
[1746796938596,0.26055342,639.27,638.91,0.742]
[1746796940793,0.53304152,639.26,637.99,0.441]
[1746796941092,0.26055342,639.25,637.99,0.441]
[1746796941696,0.26055342,639.24,637.99,0.441]
[1746796942201,0.26055342,639.23,637.99,0.441]
[1746796942500,0.26055342,639.22,637.99,0.441]
[1746796943100,0.26055342,639.21,637.99,0.441]
[1746796943503,0.26055342,639.2,637.99,0.441]
[1746796944101,0.26055342,639.25,637.99,0.441]
[1746796944403,0.26055342,639.24,637.99,0.441]
[1746796944903,0.26055342,639.23,637.99,0.441]
[1746796945303,0.26055342,639.22,637.99,0.441]
[1746796945602,0.26055342,639.21,637.99,0.441]
[1746796946003,0.26055342,639.2,637.99,0.441]
[1746796946404,0.26055342,639.25,637.99,0.441]
[1746796946604,0.27264821,639.19,637.99,0.441]
[1746796947005,0.26055342,639.18,637.99,0.441]
[1746796948405,0.26055342,639.17,637.99,0.441]
[1746796948906,0.26055342,639.18,637.99,0.441]
[1746796949606,0.27265676,639.17,637.99,0.441]
[1746796950108,0.26055342,639.16,637.99,0.441]
[1746796951609,0.26055342,639.15,637.99,0.441]
[1746796951910,0.26055342,639.16,637.99,0.441]
[1746796952610,0.26055342,639.23,637.99,0.441]
[1746796952809,0.27265676,639.15,637.99,0.441]
[1746796953010,0.57343474,639.22,637.29,0.721]
[1746796953304,0.31288621,639.21,637.31,0.31381902]
[1746796953506,0.57343963,639.21,637.31,0.31381902]
[1746796953809,0.53321231,639.2,637.32,0.5607127]
[1746796954009,0.57344942,639.19,637.34,0.31380424]
[1746796954404,0.26055342,639.18,637.35,0.28805381]
[1746796954603,0.26055342,639.18,637.37,0.31378947]
[1746796955009,0.26055342,639.18,637.38,0.28805381]
[1746796955210,0.31290579,639.17,637.4,0.3137747]
[1746796955711,0.26055342,639.16,637.4,0.3137747]
[1746796956209,0.31291559,639.15,637.4,0.3137747]
[1746796956409,0.26055342,639.14,637.4,0.3137747]
[1746796956710,0.31292538,639.13,637.4,0.3137747]
[1746796957012,0.26055342,639.12,637.4,0.8357747]
[1746796957911,0.31293517,639.11,637.4,0.8357747]
[1746796958713,0.53322834,639.1,637.4,0.8357747]
[1746796959107,0.26055342,639.09,637.4,0.8357747]
[1746796959414,0.27267492,639.1,637.4,0.8357747]
[1746796959714,0.2607145,639.09,637.4,0.8357747]
[1746796961708,0.27267599,639.08,637.4,0.8357747]
[1746796962114,0.2607145,639.07,637.4,0.8357747]
[1746796964515,0.27267599,639.06,637.4,0.8357747]
[1746796964716,0.2607145,639.05,637.4,0.8357747]
[1746796965415,0.27267599,639.06,637.4,0.8357747]
[1746796965716,0.26070666,639.05,637.41,0.28808671]
[1746796965915,0.26070666,639.05,637.43,0.31375994]
[1746796966816,0.26070666,639.05,637.44,0.28805905]
[1746796967215,0.26070666,639.05,637.43,0.31375994]
[1746796967716,0.27265676,639.04,637.43,0.31375994]
[1746796968114,0.26070666,639.03,637.43,0.31375994]
[1746796968717,0.26070666,639.03,637.43,0.94275994]
[1746796970617,0.27265355,639.02,637.43,0.94275994]
[1746796970917,0.26070666,639.01,637.43,0.94275994]
[1746796973614,0.27264501,639.0,637.43,0.94275994]
[1746796974119,0.26070666,638.99,637.43,0.94275994]
[1746796975321,0.26070666,638.99,637.44,0.28802892]
[1746796975521,0.26070666,638.99,637.46,0.31374517]
[1746796976118,0.26070666,638.99,637.47,0.28802892]
[1746796976625,0.27264181,638.98,637.49,0.31373041]
[1746796976824,0.26070666,638.97,637.49,0.31373041]
[1746796977624,0.26070666,638.97,637.5,0.28803027]
[1746796979523,0.26070666,638.97,637.52,0.31371564]
[1746796979728,0.2726386,638.96,637.52,0.31371564]
[1746796980229,0.26070666,638.95,637.52,0.31371564]
[1746796985632,0.27267385,638.94,637.52,0.31371564]
[1746796985928,0.26070666,638.93,637.52,0.31371564]
[1746796988636,0.26070666,639.1,637.52,0.31371564]
[1746796988832,0.27267919,638.92,637.52,0.31371564]
[1746796989035,0.31293517,639.11,637.52,0.31371564]
[1746796989435,0.26075342,639.1,637.52,0.31371564]
[1746796990335,0.27267278,639.09,637.52,0.31371564]
[1746796990536,0.27267278,639.09,637.52,0.95971564]
[1746796990737,0.26075342,639.08,637.52,0.95971564]
[1746796991638,0.27266958,639.07,637.52,0.95971564]
[1746796992038,0.26075342,639.06,637.52,0.95971564]
[1746796992737,0.26075342,639.06,637.52,1.45371564]
[1746796994639,0.27266958,639.05,637.52,1.45371564]
[1746796995341,0.26075342,639.04,637.52,1.45371564]
[1746796997644,0.27266958,639.03,637.52,1.45371564]
[1746796997937,0.26075342,639.02,637.52,1.45371564]
[1746797000145,0.27266958,639.03,637.52,1.45371564]
[1746797000344,0.26072982,639.02,637.52,1.45371564]
[1746797000742,0.2726824,639.02,637.52,1.45371564]
[1746797001045,0.26072982,639.01,637.52,1.45371564]
[1746797003645,0.27264608,639.0,637.52,1.45371564]
[1746797004147,0.26072982,638.99,637.52,1.45371564]
[1746797006641,0.27264608,638.98,637.52,1.45371564]
[1746797007040,0.26072982,638.97,637.52,1.45371564]
[1746797009645,0.27264608,638.96,637.52,1.45371564]
[1746797010048,0.26072982,638.95,637.52,1.45371564]
[1746797012750,0.27264608,638.94,637.52,1.45371564]
[1746797012942,0.26072982,638.93,637.52,1.45371564]
[1746797018249,0.27264608,638.94,637.52,1.45371564]
[1746797018446,0.26064128,638.93,637.52,1.45371564]
[1746797018646,0.27266317,638.92,637.52,1.45371564]
[1746797019149,0.26064128,638.91,637.52,1.45371564]
[1746797021751,0.27266317,638.9,637.52,1.45371564]
[1746797022251,0.26064128,638.89,637.52,1.45371564]
[1746797024548,0.2726354,638.88,637.52,1.45371564]
[1746797025053,0.26064128,638.87,637.52,1.45371564]
[1746797025453,0.26064128,638.87,637.53,0.28802188]
[1746797025655,0.26064128,638.87,637.55,0.31370088]
[1746797026753,0.2726354,638.88,637.55,0.31370088]
[1746797027251,0.26068975,638.87,637.55,0.31370088]
[1746797027854,0.27262899,638.86,637.55,0.31370088]
[1746797028056,0.26068975,638.85,637.55,0.31370088]
[1746797029755,0.26068975,638.85,637.55,0.87770088]
[1746797030555,0.26068975,639.1,637.55,1.49970088]
[1746797030755,0.27262579,638.84,637.55,1.49970088]
[1746797031059,0.26068975,638.83,637.55,1.49970088]
[1746797031356,0.26068975,639.1,637.55,1.49970088]
[1746797032357,0.27262579,639.09,637.55,1.49970088]
[1746797032557,0.26068975,639.08,637.55,1.49970088]
[1746797033557,0.26068975,639.1,637.55,1.49970088]
[1746797033756,0.27262579,639.07,637.55,1.49970088]
[1746797034059,0.26068975,639.06,637.55,1.49970088]
[1746797036560,0.26068975,639.1,637.55,1.49970088]
[1746797036760,0.27262579,639.05,637.55,1.49970088]
[1746797037063,0.26068975,639.04,637.55,1.49970088]
[1746797039863,0.27262365,639.03,637.55,1.49970088]
[1746797040464,0.26068975,639.02,637.55,1.49970088]
[1746797041465,0.27262365,639.03,637.55,1.49970088]
[1746797041763,0.26077028,639.02,637.55,1.49970088]
[1746797042766,0.27262365,639.01,637.55,1.49970088]
[1746797043165,0.26077028,639.0,637.55,1.49970088]
[1746797045765,0.26077028,639.0,637.56,0.28798429]
[1746797045965,0.26077028,639.0,637.58,0.31368612]
[1746797048668,0.27264287,638.99,637.58,0.31368612]
[1746797048966,0.26077028,638.98,637.58,0.31368612]
[1746797054764,0.27267492,638.97,637.58,0.31368612]
[1746797055165,0.26077028,638.96,637.58,0.31368612]
[1746797057665,0.27270697,638.95,637.58,0.31368612]
[1746797058169,0.26077028,638.94,637.58,0.31368612]
[1746797058670,0.26077028,638.93,637.58,0.31368612]
[1746797058971,0.26077028,638.92,637.58,0.31368612]
[1746797059270,0.26077028,638.91,637.58,0.31368612]
[1746797059673,0.26077028,638.9,637.58,0.31368612]
[1746797059972,0.26077028,638.89,637.58,0.31368612]
[1746797060472,0.26077028,638.94,637.58,0.31368612]
[1746797060669,0.27271124,638.88,637.58,0.31368612]
[1746797061166,0.26077028,638.87,637.58,0.31368612]
[1746797063669,0.27268346,638.86,637.58,0.31368612]
[1746797063972,0.26077028,638.85,637.58,0.31368612]
[1746797066574,0.27268346,638.84,637.58,0.31368612]
[1746797066975,0.26077028,638.83,637.58,0.31368612]
[1746797069879,0.27268346,638.82,637.58,0.31368612]
[1746797070079,0.26077028,638.81,637.58,0.31368612]
[1746797072685,0.27266637,638.8,637.58,0.31368612]
[1746797073184,0.26077028,638.79,637.58,0.31368612]
[1746797075886,0.27266637,638.8,637.58,0.31368612]
[1746797076186,0.26066551,638.79,637.58,0.31368612]
[1746797077987,0.26066551,638.79,637.59,0.678]
[1746797078179,0.26066551,638.79,637.61,0.31367136]
[1746797078584,0.26066551,639.1,637.61,0.31367136]
[1746797078783,0.27265355,638.78,637.61,0.31367136]
[1746797079086,0.26066551,639.1,637.61,0.31367136]
[1746797079285,0.26066551,638.77,637.61,0.31367136]
[1746797079585,0.26066551,639.1,637.61,0.31367136]
[1746797079989,0.27265355,638.76,637.61,0.31367136]
[1746797080187,0.26066551,639.1,637.61,0.31367136]
[1746797080389,0.53331906,638.75,637.61,0.31367136]
[1746797080689,0.26066551,638.74,637.61,0.31367136]
[1746797080890,0.53331906,638.74,637.61,0.31367136]
[1746797081081,0.27265355,638.74,637.61,0.31367136]
[1746797081283,0.26066551,638.73,637.61,0.31367136]
[1746797081683,0.27265355,638.72,637.61,0.31367136]
[1746797081883,0.26066551,638.71,637.61,0.31367136]
[1746797085788,0.27265355,638.72,637.61,0.31367136]
[1746797087388,0.31293517,639.11,637.61,0.31367136]
[1746797087588,0.26091026,639.1,637.61,0.31367136]
[1746797087788,0.27264287,638.71,637.61,0.31367136]
[1746797087988,0.26091026,639.1,637.61,0.31367136]
[1746797088187,0.26091026,639.1,637.62,0.659]
[1746797088388,0.26091026,639.1,637.64,0.3136566]
[1746797089588,0.27263967,639.09,637.64,0.3136566]
[1746797089993,0.26091026,639.08,637.64,0.3136566]
[1746797090791,0.27264608,639.07,637.64,0.3136566]
[1746797091585,0.26091026,639.06,637.64,0.3136566]
[1746797092895,0.26091026,639.06,637.65,0.501]
[1746797093092,0.26091026,639.06,637.66,0.31364677]
[1746797093292,0.26091026,639.05,637.66,0.31364677]
[1746797093687,0.26091026,639.04,637.66,0.31364677]
[1746797093993,0.26091026,639.03,637.66,0.31364677]
[1746797094489,0.26091026,639.02,637.66,0.31364677]
[1746797094995,0.26091026,639.01,637.66,0.31364677]
[1746797095295,0.26091026,639.0,637.66,0.31364677]
[1746797095690,0.26091026,638.99,637.66,0.31364677]
[1746797095890,0.26091026,639.03,637.66,0.31364677]
[1746797096695,0.27265569,639.02,637.66,0.31364677]
[1746797096899,0.26091026,639.01,637.66,0.31364677]
[1746797099196,0.27265569,639.02,637.66,0.31364677]
[1746797099390,0.31293517,639.11,637.66,0.31364677]
[1746797099595,0.26109651,639.01,637.66,0.31364677]
[1746797099796,0.27265569,639.01,637.66,0.31364677]
[1746797099996,0.26109651,639.1,637.66,0.31364677]
[1746797099997,0.26109651,639.0,637.66,0.31364677]
[1746797100192,0.26109651,639.1,637.66,0.31364677]
[1746797100493,0.31294496,639.09,637.66,0.31364677]
[1746797100695,0.26109651,639.08,637.66,0.31364677]
[1746797101197,0.27265783,639.07,637.66,0.31364677]
[1746797101497,0.26109651,639.06,637.66,0.31364677]
[1746797102796,0.27265783,639.05,637.66,0.31364677]
[1746797103098,0.26109651,639.04,637.66,0.31364677]
[1746797105602,0.26109651,639.08,637.66,0.31364677]
[1746797105796,0.27265783,639.03,637.66,0.31364677]
[1746797105997,0.26109651,639.02,637.66,0.31364677]
[1746797107103,0.27265783,639.03,637.66,0.31364677]
[1746797107303,0.2610915,639.02,637.66,0.31364677]
[1746797108603,0.2610915,639.08,637.66,0.31364677]
[1746797108804,0.27265783,639.01,637.66,0.31364677]
[1746797109101,0.2610915,639.0,637.66,0.31364677]
[1746797109705,0.2610915,638.99,637.66,0.31364677]
[1746797109905,0.2610915,638.98,637.66,0.31364677]
[1746797110205,0.2610915,638.97,637.66,0.31364677]
[1746797110406,0.2610915,639.0,637.66,0.31364677]
[1746797111707,0.27264287,638.99,637.66,0.31364677]
[1746797111903,0.2610915,638.98,637.66,0.31364677]
[1746797114612,0.27263433,638.97,637.66,0.31364677]
[1746797115112,0.2610915,638.96,637.66,0.31364677]
[1746797115914,0.27263433,638.97,637.66,0.31364677]
[1746797116213,0.26105947,638.96,637.66,0.31364677]
[1746797120714,0.27263433,638.95,637.66,0.31364677]
[1746797121112,0.26105947,638.94,637.66,0.31364677]
[1746797121320,0.27263433,638.95,637.66,0.31364677]
[1746797121621,0.26103176,638.94,637.66,0.31364677]
[1746797123617,0.27260657,638.93,637.66,0.31364677]
[1746797123823,0.26103176,638.92,637.66,0.31364677]
[1746797126619,0.26103176,639.08,637.66,0.31364677]
[1746797126823,0.27259802,638.91,637.66,0.31364677]
[1746797127024,0.26103176,639.08,637.66,0.31364677]
[1746797128226,0.27259802,639.07,637.66,0.31364677]
[1746797129131,0.26103176,639.06,637.66,0.31364677]
[1746797131329,0.26103176,639.06,637.66,0.84364677]
[1746797132831,0.27255426,639.05,637.66,0.84364677]
[1746797133435,0.26103176,639.04,637.66,0.84364677]
[1746797133736,0.27255426,639.05,637.66,0.84364677]
[1746797134134,0.2609529,639.04,637.66,0.84364677]
[1746797134332,0.27255426,639.05,637.66,0.84364677]
[1746797135430,0.3128177,639.35,637.66,0.84364677]
[1746797135829,0.27252437,639.04,637.66,0.84364677]
[1746797136033,0.26088906,639.34,637.66,0.84364677]
[1746797136530,0.26088906,639.03,637.67,0.28787917]
[1746797136938,0.27251797,639.02,637.67,0.28787917]
[1746797137237,0.26088906,639.01,637.67,0.28787917]
[1746797137439,0.27251797,639.02,637.67,0.28787917]
[1746797138137,0.27251797,639.02,637.67,0.86587917]
[1746797138438,0.3128177,639.35,637.67,0.86587917]
[1746797138738,0.27251691,639.01,637.68,0.28787917]
[1746797139040,0.26086123,639.34,637.68,0.28787917]
[1746797139641,0.3128177,639.35,637.67,0.578]
[1746797139938,0.26086407,639.34,637.68,0.28786235]
[1746797140235,0.53337991,639.34,637.68,0.28786235]
[1746797140841,0.26086407,639.33,637.68,0.28786235]
[1746797141142,0.27251584,639.34,637.67,0.578]
[1746797141343,0.26086224,639.33,637.68,0.2878605]
[1746797141735,0.53337915,639.33,637.68,0.2878605]
[1746797142037,0.26086224,639.32,637.68,0.2878605]
[1746797147245,0.26086224,639.32,637.7,0.31362709]
[1746797147645,0.26086224,639.32,637.71,0.2878605]
[1746797147946,0.27253078,639.31,637.73,0.31361234]
[1746797148152,0.26086224,639.3,637.74,0.2878605]
[1746797148443,0.26086224,639.3,637.76,0.31359759]
[1746797148649,0.26086224,639.3,637.77,0.2878605]
[1746797148841,0.26086224,639.3,637.79,0.31358284]
[1746797149543,0.26086224,639.3,637.8,0.2878605]
[1746797150449,0.3128177,639.35,637.79,0.31358284]
[1746797150847,0.27249983,639.29,637.8,0.28785801]
[1746797151651,0.27249983,639.29,637.8,0.85185801]
[1746797151950,0.26085981,639.28,637.8,0.85185801]
[1746797152148,0.26085981,639.28,637.81,0.28785801]
[1746797152751,0.26085981,639.28,637.83,0.31356317]
[1746797153250,0.26085981,639.28,637.84,0.28785801]
[1746797153651,0.26085981,639.28,637.83,0.31356317]
[1746797153852,0.27249557,639.27,637.83,0.31356317]
[1746797154451,0.26085981,639.26,637.83,0.31356317]
[1746797156853,0.27251797,639.25,637.83,0.31356317]
[1746797157053,0.53337778,639.25,637.83,0.31356317]
[1746797157552,0.26085981,639.24,637.83,0.31356317]
[1746797158657,0.26085981,639.24,637.84,0.502]
[1746797158857,0.26085981,639.24,637.86,0.31354842]
[1746797159357,0.26085981,639.24,637.87,0.28786553]
[1746797159657,0.26085981,639.24,637.89,0.31353368]
[1746797159957,0.27249983,639.23,637.89,0.31353368]
[1746797160351,0.26085981,639.22,637.9,0.28786533]
[1746797160552,0.26085981,639.22,637.92,0.31351893]
[1746797162660,0.2725009,639.21,637.92,0.31351893]
[1746797163059,0.26085981,639.2,637.92,0.31351893]
[1746797165655,0.27249877,639.19,637.92,0.31351893]
[1746797165961,0.26085981,639.18,637.92,0.31351893]
[1746797168663,0.27249877,639.19,637.92,0.31351893]
[1746797171467,0.3128177,639.35,637.92,0.31351893]
[1746797171862,0.27249983,639.34,637.92,0.31351893]
[1746797172165,0.53336229,639.34,637.92,0.31351893]
[1746797172365,0.26086246,639.33,637.92,0.31351893]
[1746797174771,0.27252011,639.32,637.92,0.31351893]
[1746797175067,0.26086246,639.31,637.92,0.31351893]
[1746797177764,0.27252011,639.3,637.92,0.31351893]
[1746797178068,0.26086246,639.29,637.92,0.31351893]
[1746797180870,0.27249663,639.28,637.92,0.31351893]
[1746797181466,0.26089757,639.27,637.92,0.31351893]
[1746797183871,0.27250303,639.26,637.92,0.31351893]
[1746797184470,0.26090083,639.25,637.92,0.31351893]
[1746797186869,0.27251264,639.24,637.92,0.31351893]
[1746797187167,0.26090083,639.23,637.92,0.31351893]
[1746797187373,0.26090083,639.23,637.92,0.85451893]
[1746797188075,0.27251264,639.24,637.92,0.85451893]
[1746797188270,0.26089839,639.23,637.92,0.85451893]
[1746797189768,0.2724945,639.22,637.92,0.85451893]
[1746797190073,0.26089839,639.21,637.92,0.85451893]
[1746797192872,0.2724945,639.2,637.92,0.85451893]
[1746797193576,0.26089839,639.19,637.92,0.85451893]
[1746797198677,0.26089839,639.34,637.92,0.85451893]
[1746797198880,0.27248596,639.18,637.92,0.85451893]
[1746797199080,0.26089839,639.34,637.92,0.85451893]
[1746797200483,0.27248596,639.33,637.92,0.85451893]
[1746797200884,0.26089839,639.32,637.92,0.85451893]
[1746797201685,0.26089839,639.32,637.92,1.39251893]
[1746797204785,0.27248596,639.31,637.92,1.39251893]
[1746797204985,0.26089839,639.3,637.92,1.39251893]
[1746797205985,0.27248596,639.31,637.92,1.39251893]
[1746797206284,0.26089079,639.3,637.92,1.39251893]
[1746797207686,0.27248596,639.29,637.92,1.39251893]
[1746797208286,0.26089079,639.28,637.92,1.39251893]
[1746797209185,0.27248596,639.29,637.92,1.39251893]
[1746797210581,0.3128177,639.35,637.92,1.39251893]
[1746797210786,0.27246036,639.28,637.92,1.39251893]
[1746797212388,0.2608077,639.27,637.92,1.39251893]
[1746797213183,0.27246036,639.28,637.92,1.39251893]
[1746797213389,0.26080832,639.27,637.92,1.39251893]
[1746797213790,0.27246036,639.26,637.92,1.39251893]
[1746797214088,0.26080832,639.25,637.92,1.39251893]
[1746797216692,0.26080832,639.34,637.92,1.39251893]
[1746797216886,0.27247956,639.24,637.92,1.39251893]
[1746797217089,0.26080832,639.34,637.92,1.39251893]
[1746797217286,0.26080832,639.23,637.92,1.39251893]
[1746797217686,0.26080832,639.34,637.92,1.39251893]
[1746797218492,0.27247956,639.33,637.92,1.39251893]
[1746797218891,0.26080832,639.32,637.92,1.39251893]
[1746797219794,0.27247956,639.31,637.92,1.39251893]
[1746797220287,0.26083884,639.3,637.92,1.39251893]
[1746797222795,0.27246036,639.29,637.92,1.39251893]
[1746797223094,0.27246036,639.29,637.93,0.28780725]
[1746797223295,0.27246036,639.29,637.92,1.39251893]
[1746797223495,0.27246036,639.29,637.94,0.3135091]
[1746797223692,0.26080995,639.28,637.94,0.3135091]
[1746797223996,0.26080995,639.28,637.95,0.28780785]
[1746797224195,0.26080995,639.28,637.97,0.31349436]
[1746797224596,0.26080995,639.28,637.98,0.28780785]
[1746797224797,0.26080995,639.28,638.0,0.31347962]
[1746797225598,0.26080995,639.28,638.01,0.28780785]
[1746797225798,0.26080995,639.28,638.03,0.31346488]
[1746797229000,0.2724625,639.27,638.03,0.31346488]
[1746797229200,0.53327245,639.27,638.03,0.31346488]
[1746797229401,0.26080995,639.26,638.03,0.31346488]
[1746797231896,0.2724753,639.25,638.03,0.31346488]
[1746797232703,0.26080995,639.24,638.03,0.31346488]
[1746797233004,0.2724753,639.25,638.03,0.31346488]
[1746797233303,0.26084715,639.24,638.03,0.31346488]
[1746797234799,0.27255639,639.23,638.03,0.31346488]
[1746797235103,0.26084715,639.22,638.03,0.31346488]
[1746797237806,0.27255639,639.21,638.03,0.31346488]
[1746797238006,0.26084715,639.2,638.03,0.31346488]
[1746797240909,0.27255853,639.19,638.03,0.31346488]
[1746797241510,0.26084715,639.18,638.03,0.31346488]
[1746797245213,0.27255853,639.19,638.03,0.31346488]
[1746797245512,0.26099523,639.18,638.03,0.31346488]
[1746797246715,0.26099523,639.34,638.03,0.31346488]
[1746797247011,0.26099523,639.33,638.03,0.31346488]
[1746797247413,0.26099523,639.34,638.03,0.31346488]
[1746797248319,0.27255853,639.33,638.03,0.31346488]
[1746797248717,0.26099523,639.32,638.03,0.31346488]
[1746797249717,0.27255853,639.31,638.03,0.31346488]
[1746797250114,0.26099523,639.3,638.03,0.31346488]
[1746797252817,0.27255853,639.29,638.03,0.31346488]
[1746797253118,0.26099523,639.28,638.03,0.31346488]
[1746797255721,0.27255853,639.27,638.03,0.31346488]
[1746797255914,0.26099523,639.26,638.03,0.31346488]
[1746797258724,0.27255853,639.25,638.03,0.31346488]
[1746797260020,0.26099523,639.24,638.03,0.31346488]
[1746797261730,0.27247316,639.23,638.03,0.31346488]
[1746797262231,0.26099523,639.22,638.03,0.31346488]
[1746797263431,0.27247316,639.23,638.03,0.31346488]
[1746797263732,0.26085162,639.22,638.03,0.31346488]
[1746797264030,0.27247316,639.23,638.03,0.31346488]
[1746797264226,0.27247316,639.23,638.03,0.85046488]
[1746797264428,0.3128177,639.35,638.03,0.85046488]
[1746797264829,0.27243583,639.22,638.03,0.85046488]
[1746797265030,0.26080576,639.34,638.03,0.85046488]
[1746797265328,0.3128177,639.35,638.03,0.85046488]
[1746797265830,0.3128177,639.35,638.03,1.34746488]
[1746797266430,0.27241344,639.34,638.03,1.34746488]
[1746797267530,0.3128177,639.35,638.03,1.34746488]
[1746797267924,0.27241451,639.33,638.03,1.34746488]
[1746797268128,0.27241451,639.33,638.04,0.28773817]
[1746797270531,0.3128177,639.35,638.04,0.28773817]
[1746797270732,0.27241451,639.32,638.04,0.28773817]
[1746797271034,0.26074862,639.31,638.04,0.28773817]
[1746797271934,0.26074862,639.31,638.06,0.31345014]
[1746797272728,0.26074862,639.31,638.07,0.28773817]
[1746797273033,0.26074862,639.31,638.09,0.3134354]
[1746797273433,0.26074862,639.31,638.1,0.28773817]
[1746797273831,0.3128177,639.35,638.09,0.3134354]
[1746797274030,0.27241877,639.3,638.09,0.3134354]
[1746797274234,0.27241877,639.3,638.1,0.28774206]
[1746797275434,0.26074497,639.29,638.1,0.28774206]
[1746797276731,0.27241877,639.28,638.1,0.28774206]
[1746797277031,0.26074497,639.27,638.1,0.28774206]
[1746797277735,0.27241877,639.28,638.1,0.28774206]
[1746797279536,0.3128177,639.35,638.1,0.28774206]
[1746797279736,0.27241877,639.27,638.1,0.28774206]
[1746797280038,0.3128177,639.35,638.1,0.28774206]
[1746797280834,0.26074454,639.34,638.1,0.28774206]
[1746797281536,0.27240811,639.33,638.1,0.28774206]
[1746797282136,0.27240811,639.33,638.09,0.3134354]
[1746797283234,0.27240811,639.33,638.1,0.28772847]
[1746797285537,0.3128177,639.35,638.1,0.28772847]
[1746797285938,0.27240811,639.32,638.1,0.28772847]
[1746797288542,0.3128177,639.35,638.1,0.28772847]
[1746797288742,0.27240811,639.31,638.1,0.28772847]
[1746797291749,0.3128177,639.35,638.1,0.28772847]
[1746797301554,0.3128177,639.35,638.11,0.457]
[1746797302051,0.3128177,639.35,638.12,0.28772847]
[1746797303352,0.3128177,639.35,638.11,0.457]
[1746797305850,0.3128177,639.35,638.12,1.10847894]
[1746797306151,0.3128177,639.35,638.13,1.10847894]
[1746797306352,0.3128177,639.35,638.14,1.10847894]
[1746797306553,0.3128177,639.35,638.15,1.10847894]
[1746797306752,0.3128177,639.35,638.16,1.10847894]
[1746797306954,0.3128177,639.35,638.17,1.10847894]
[1746797307151,0.3128177,639.35,638.18,1.10847894]
[1746797307349,0.3128177,639.35,638.19,1.10847894]
[1746797307656,0.3128177,639.35,638.2,1.10847894]
[1746797307857,0.3128177,639.35,638.21,1.10847894]
[1746797308058,0.3128177,639.35,638.22,1.10847894]
[1746797308360,0.3128177,639.35,638.23,1.10847894]
[1746797308555,0.3128177,639.35,638.24,1.10847894]
[1746797308756,0.3128177,639.35,638.25,1.10847894]
[1746797308956,0.3128177,639.35,638.26,1.10847894]
[1746797309158,0.3128177,639.35,638.27,1.10847894]
[1746797309352,0.3128177,639.35,638.28,1.10847894]
[1746797309557,0.3128177,639.35,638.29,1.10847894]
[1746797309756,0.3128177,639.35,638.3,1.10847894]
[1746797310056,0.3128177,639.35,638.31,1.10847894]
[1746797310256,0.3128177,639.35,638.32,1.10847894]
[1746797310456,0.3128177,639.35,638.33,1.10847894]
[1746797310758,0.3128177,639.35,638.34,1.10847894]
[1746797310955,0.3128177,639.35,638.35,1.10847894]
[1746797311152,0.3128177,639.35,638.36,1.10847894]
[1746797311356,0.3128177,639.35,638.37,1.10847894]
[1746797311557,0.3128177,639.35,638.38,1.10847894]
[1746797311756,0.3128177,639.35,638.39,1.10847894]
[1746797311956,0.3128177,639.35,638.4,1.10847894]
[1746797312257,0.3128177,639.35,638.41,1.10847894]
[1746797312451,0.3128177,639.35,638.42,1.10847894]
[1746797312757,0.3128177,639.35,638.43,1.10847894]
[1746797312957,0.3128177,639.35,638.44,1.10847894]
[1746797313258,0.3128177,639.35,638.45,1.10847894]
[1746797313457,0.3128177,639.35,638.46,1.10847894]
[1746797313656,0.3128177,639.35,638.47,1.10847894]
[1746797313856,0.3128177,639.35,638.48,1.10847894]
[1746797314054,0.3128177,639.35,638.49,1.10847894]
[1746797314255,0.3128177,639.35,638.5,1.10847894]
[1746797314451,0.3128177,639.35,638.51,1.10847894]
[1746797314657,0.3128177,639.35,638.52,1.10847894]
[1746797314852,0.3128177,639.35,638.53,1.10847894]
[1746797315055,0.3128177,639.35,638.54,1.10847894]
[1746797315253,0.3128177,639.35,638.55,1.10847894]
[1746797315453,0.3128177,639.35,638.56,1.10847894]
[1746797315652,0.3128177,639.35,638.28,0.27231752]
[1746797315653,0.3128177,639.35,638.57,1.10847894]
[1746797315860,0.3128177,639.35,638.58,1.10847894]
[1746797316159,0.3128177,639.35,638.59,1.10847894]
[1746797316356,0.3128177,639.35,638.6,1.10847894]
[1746797316558,0.3128177,639.35,638.61,1.10847894]
[1746797316755,0.3128177,639.35,638.62,1.10847894]
[1746797316961,0.3128177,639.35,638.63,1.10847894]
[1746797317160,0.3128177,639.35,638.64,1.10847894]
[1746797317361,0.3128177,639.35,638.65,1.10847894]
[1746797317562,0.3128177,639.35,638.66,1.10847894]
[1746797317761,0.3128177,639.35,638.67,1.10847894]
[1746797317959,0.3128177,639.35,638.68,1.10847894]
[1746797318159,0.3128177,639.35,638.69,1.4216199]
[1746797318359,0.3128177,639.35,638.7,1.10847894]
[1746797318559,0.3128177,639.35,638.71,1.10847894]
[1746797318758,0.3128177,639.35,638.72,1.10847894]
[1746797318963,0.3128177,639.35,638.73,1.10847894]
[1746797319159,0.3128177,639.35,638.74,1.10847894]
[1746797319364,0.3128177,639.35,638.75,1.10847894]